bitfinex-derivatives/quotes_SOLF0:USTF0_20250505
["timestamp","ask_amount","ask_price","bid_price","bid_amount"]
[1746407300200,4.2039,144.76,144.66,24.62]
[1746407301199,6.9099,144.72,144.68,6.9112]
[1746407301703,6.91,144.71,144.68,6.9112]
[1746407305603,6.91,144.71,144.66,24.62]
[1746407305806,4.2039,144.76,144.66,24.62]
[1746407305807,6.9097,144.72,144.69,6.9109]
[1746407306310,4.2039,144.76,144.68,6.9112]
[1746407306311,6.91,144.71,144.68,6.9112]
[1746407306700,6.91,144.71,144.66,24.62]
[1746407306908,4.2039,144.76,144.66,24.62]
[1746407307109,6.909,144.73,144.69,6.9106]
[1746407307301,4.2039,144.76,144.69,6.9106]
[1746407307702,6.9098,144.72,144.69,6.9106]
[1746407308008,4.2039,144.76,144.7,24.58]
[1746407308208,6.9089,144.74,144.7,24.58]
[1746407309013,6.9089,144.74,144.71,6.9097]
[1746407311819,4.2039,144.76,144.7,24.58]
[1746407312110,4.2039,144.76,144.67,24.58]
[1746407312413,4.2039,144.76,144.67,31.4915]
[1746407313114,6.9105,144.7,144.67,31.4915]
[1746407313315,24.58,144.73,144.64,24.58]
[1746407313615,6.9114,144.69,144.64,24.58]
[1746407314008,2.0513,144.72,144.64,24.58]
[1746407314214,6.9105,144.7,144.64,24.58]
[1746407314415,2.0513,144.72,144.64,24.58]
[1746407314714,8.961,144.72,144.64,24.58]
[1746407314913,6.9097,144.72,144.64,26.5936]
[1746407316214,6.9097,144.72,144.68,6.9111]
[1746407316614,6.9102,144.71,144.68,6.9111]
[1746407316813,6.9102,144.71,144.67,6.9117]
[1746407317013,24.58,144.73,144.67,6.9117]
[1746407317316,24.58,144.73,144.65,6.9127]
[1746407318217,24.58,144.73,144.64,24.58]
[1746407318817,6.91,144.71,144.67,6.9115]
[1746407319114,24.58,144.73,144.64,24.58]
[1746407319415,6.91,144.71,144.68,6.9113]
[1746407319616,6.91,144.71,144.68,31.4913]
[1746407324126,6.91,144.71,144.68,24.58]
[1746407324316,6.9106,144.7,144.68,24.58]
[1746407328024,6.9102,144.71,144.68,31.4914]
[1746407332226,6.9105,144.7,144.68,24.58]
[1746407332823,2.0799,144.75,144.68,24.58]
[1746407333019,6.9103,144.71,144.68,31.4913]
[1746407333824,6.9097,144.72,144.68,31.4913]
[1746407334124,2.0799,144.75,144.68,24.58]
[1746407334726,6.909,144.74,144.7,6.9101]
[1746407334924,2.0799,144.75,144.7,6.9101]
[1746407335526,6.9093,144.73,144.69,6.9109]
[1746407336022,6.9087,144.74,144.7,6.9104]
[1746407338829,6.9091,144.73,144.7,6.9104]
[1746407339031,24.64,144.79,144.69,6.9107]
[1746407339425,6.9094,144.73,144.69,6.9107]
[1746407341029,6.9094,144.73,144.7,6.9104]
[1746407341532,6.9087,144.74,144.7,6.9104]
[1746407341727,6.9087,144.74,144.68,24.58]
[1746407341728,6.9087,144.74,144.71,6.91]
[1746407342031,24.64,144.79,144.68,24.58]
[1746407343232,6.9091,144.73,144.7,6.9102]
[1746407344430,6.9087,144.74,144.71,6.9099]
[1746407344632,24.64,144.79,144.68,24.58]
[1746407345035,24.64,144.79,144.7,6.9102]
[1746407345238,24.64,144.79,144.68,24.58]
[1746407345534,6.9109,144.69,144.68,24.58]
[1746407346436,6.9105,144.7,144.68,24.58]
[1746407346934,6.9102,144.71,144.68,24.58]
[1746407347535,24.62,144.74,144.68,24.58]
[1746407347737,24.64,144.77,144.68,24.58]
[1746407347928,6.9088,144.74,144.71,6.9097]
[1746407348338,6.9088,144.74,144.68,24.58]
[1746407348633,6.9088,144.74,144.7,6.9104]
[1746407350037,6.9088,144.74,144.71,6.9098]
[1746407350334,6.9082,144.75,144.71,6.9098]
[1746407350538,24.64,144.77,144.71,6.9098]
[1746407352238,6.9087,144.74,144.71,6.9098]
[1746407353542,6.9087,144.74,144.7,6.9102]
[1746407355144,6.9092,144.73,144.7,6.9102]
[1746407355740,6.9092,144.73,144.68,24.58]
[1746407355947,24.64,144.77,144.68,24.58]
[1746407356947,6.9108,144.7,144.68,24.58]
[1746407357744,6.9084,144.75,144.68,24.58]
[1746407357947,3.9398,144.74,144.65,24.62]
[1746407358146,26.7236,144.73,144.65,24.62]
[1746407358651,26.7236,144.73,144.62,385.62]
[1746407358846,26.7236,144.73,144.62,24.62]
[1746407359044,6.9128,144.66,144.62,31.534]
[1746407359345,6.9128,144.66,144.62,24.62]
[1746407359541,26.7236,144.73,144.64,6.9133]
[1746407359952,6.9116,144.68,144.64,6.9133]
[1746407360145,6.9116,144.68,144.65,6.9128]
[1746407360346,26.7236,144.73,144.62,24.62]
[1746407360547,6.9118,144.68,144.62,24.62]
[1746407360843,6.9118,144.68,144.64,6.913]
[1746407361153,6.9119,144.67,144.64,6.913]
[1746407361952,6.9119,144.67,144.63,6.9136]
[1746407362153,6.9125,144.66,144.63,6.9136]
[1746407363151,6.9125,144.66,144.62,31.5341]
[1746407363352,6.9129,144.65,144.62,31.5341]
[1746407363757,6.9129,144.65,144.62,24.62]
[1746407365354,6.9129,144.65,144.62,31.5342]
[1746407366657,6.9125,144.66,144.63,6.9138]
[1746407366954,6.9125,144.66,144.62,24.62]
[1746407367454,6.9125,144.66,144.63,6.9138]
[1746407367655,6.9121,144.67,144.62,24.62]
[1746407367855,24.56,144.72,144.62,24.62]
[1746407368058,24.56,144.72,144.65,6.9127]
[1746407369260,6.9115,144.68,144.65,6.9127]
[1746407369957,6.9115,144.68,144.64,6.9131]
[1746407370158,6.9115,144.68,144.62,24.62]
[1746407375263,6.9115,144.68,144.65,6.9128]
[1746407379068,24.56,144.72,144.66,6.9122]
[1746407380159,6.9112,144.69,144.66,6.9122]
[1746407383666,6.9112,144.69,144.65,6.9127]
[1746407383969,6.9112,144.69,144.62,24.62]
[1746407384869,6.9112,144.69,144.65,6.9126]
[1746407386170,24.56,144.72,144.65,6.9126]
[1746407386571,24.56,144.72,144.66,6.9124]
[1746407386967,6.9112,144.69,144.66,6.9124]
[1746407387273,24.56,144.72,144.67,6.9116]
[1746407387468,31.4697,144.72,144.66,24.58]
[1746407387666,2.1036,144.73,144.66,24.58]
[1746407387869,1.9705,144.74,144.69,6.9106]
[1746407388070,24.58,144.75,144.66,24.58]
[1746407388270,4.0253,144.78,144.66,24.58]
[1746407388271,30.6046,144.78,144.7,6.91]
[1746407388573,30.6046,144.78,144.7,24.58]
[1746407388773,6.9086,144.74,144.7,24.58]
[1746407390075,6.9092,144.73,144.7,24.58]
[1746407390976,6.9087,144.74,144.7,31.4903]
[1746407391577,6.9087,144.74,144.71,6.9099]
[1746407394180,6.9087,144.74,144.7,31.4902]
[1746407394372,6.9087,144.74,144.7,24.58]
[1746407394978,30.6046,144.78,144.71,6.9099]
[1746407394979,6.9083,144.75,144.71,6.9099]
[1746407395275,30.6046,144.78,144.7,24.58]
[1746407395479,30.6046,144.78,144.71,6.9099]
[1746407396377,6.9084,144.75,144.71,6.9099]
[1746407397879,6.9086,144.74,144.7,31.4903]
[1746407399177,30.6046,144.78,144.7,24.58]
[1746407400179,6.91,144.71,144.7,24.58]
[1746407400575,30.6046,144.78,144.59,908.4]
[1746407400877,30.6046,144.78,144.66,6.9121]
[1746407401079,30.6046,144.78,144.67,24.46]
[1746407402181,6.9101,144.71,144.68,6.9112]
[1746407402479,30.6046,144.78,144.67,24.46]
[1746407402780,6.9105,144.7,144.67,31.3716]
[1746407403674,6.9105,144.7,144.68,6.9114]
[1746407403874,6.9102,144.71,144.68,6.9114]
[1746407409088,6.9097,144.72,144.68,6.9114]
[1746407412090,30.6046,144.78,144.7,6.9104]
[1746407412590,6.9089,144.74,144.7,6.9104]
[1746407412785,30.6046,144.78,144.67,24.46]
[1746407412986,2.0611,144.73,144.67,24.46]
[1746407413190,6.9104,144.71,144.67,24.46]
[1746407413391,6.9104,144.71,144.67,31.3716]
[1746407414691,6.9105,144.7,144.67,24.46]
[1746407416594,6.9105,144.7,144.67,31.3718]
[1746407418396,6.9105,144.7,144.67,24.46]
[1746407419297,6.9102,144.71,144.67,31.3718]
[1746407419793,6.9109,144.69,144.67,24.46]
[1746407420004,2.144,144.72,144.67,24.46]
[1746407420204,2.132,144.71,144.64,24.46]
[1746407420495,2.132,144.71,144.61,24.46]
[1746407420496,24.46,144.7,144.61,24.46]
[1746407420998,6.9136,144.64,144.61,24.46]
[1746407422200,6.9136,144.64,144.61,31.3747]
[1746407422499,6.9136,144.64,144.61,24.46]
[1746407423593,6.913,144.65,144.61,31.3745]
[1746407423999,24.46,144.7,144.61,31.3745]
[1746407424499,6.9133,144.65,144.61,31.3745]
[1746407425301,6.9133,144.64,144.61,31.3745]
[1746407431807,6.9131,144.65,144.61,31.3745]
[1746407432196,24.46,144.7,144.61,24.46]
[1746407432400,6.9116,144.68,144.61,24.46]
[1746407432800,6.9116,144.68,144.65,6.9127]
[1746407434415,6.9111,144.69,144.61,24.46]
[1746407435011,6.9111,144.69,144.66,6.9123]
[1746407435213,6.9107,144.7,144.65,24.48]
[1746407435404,6.9107,144.7,144.66,24.48]
[1746407435806,6.9107,144.7,144.66,31.392]
[1746407436001,6.9107,144.7,144.66,24.48]
[1746407436713,6.9112,144.69,144.66,24.48]
[1746407438215,6.9115,144.68,144.66,24.48]
[1746407441013,6.9119,144.67,144.66,24.48]
[1746407441213,2.132,144.71,144.66,24.48]
[1746407442219,6.9114,144.68,144.66,24.48]
[1746407442714,6.9114,144.68,144.66,31.3923]
[1746407442921,6.9111,144.69,144.66,31.3923]
[1746407446216,6.9107,144.7,144.67,6.9118]
[1746407446822,6.9107,144.7,144.66,31.3921]
[1746407447121,26.5411,144.73,144.66,24.48]
[1746407447321,26.5411,144.73,144.68,6.9111]
[1746407447722,6.91,144.71,144.68,6.9111]
[1746407448525,6.91,144.71,144.67,6.9117]
[1746407448824,6.91,144.71,144.66,24.48]
[1746407450024,6.9097,144.72,144.68,6.9111]
[1746407451925,6.9097,144.72,144.69,6.9109]
[1746407454429,6.9101,144.71,144.68,6.9112]
[1746407454624,6.9101,144.71,144.66,24.48]
[1746407456229,6.9101,144.71,144.68,6.9114]
[1746407457635,6.9097,144.72,144.68,6.9114]
[1746407458432,6.9097,144.72,144.69,6.9109]
[1746407459835,6.91,144.71,144.68,6.9113]
[1746407461032,2.0309,144.75,144.66,24.48]
[1746407461637,6.911,144.69,144.66,31.3921]
[1746407461938,6.911,144.69,144.66,24.48]
[1746407462240,6.911,144.69,144.66,31.3921]
[1746407462838,2.0309,144.75,144.67,6.9117]
[1746407463639,6.91,144.71,144.68,6.9114]
[1746407463838,2.0309,144.75,144.68,6.9114]
[1746407464240,6.9096,144.72,144.68,6.9114]
[1746407464542,2.0309,144.75,144.66,24.48]
[1746407464740,6.9088,144.74,144.66,24.48]
[1746407465141,6.9088,144.74,144.71,6.91]
[1746407465641,6.909,144.73,144.7,6.9102]
[1746407466041,6.909,144.73,144.66,24.48]
[1746407467441,6.9096,144.72,144.66,24.48]
[1746407468041,6.9096,144.72,144.68,6.9109]
[1746407468546,2.0309,144.75,144.67,6.9117]
[1746407469243,6.9103,144.71,144.67,6.9117]
[1746407470145,6.9105,144.7,144.67,6.9117]
[1746407473448,6.9098,144.72,144.66,24.48]
[1746407474048,6.9098,144.72,144.69,6.9109]
[1746407475055,6.9092,144.73,144.7,6.9104]
[1746407475257,2.0309,144.75,144.66,24.48]
[1746407476458,6.9099,144.72,144.68,6.9111]
[1746407479459,6.9101,144.71,144.68,6.9111]
[1746407479659,2.0309,144.75,144.69,6.9107]
[1746407480063,6.9094,144.73,144.69,6.9107]
[1746407483563,6.9094,144.73,144.7,6.9104]
[1746407483762,6.9094,144.73,144.66,24.48]
[1746407484264,6.9088,144.74,144.66,24.48]
[1746407485562,6.9092,144.73,144.66,24.48]
[1746407485861,24.38,144.83,144.67,1.26931999]
[1746407486059,6.9069,144.78,144.67,3.40021999]
[1746407486256,6.1499,144.82,144.72,6.9092]
[1746407486457,6.1499,144.82,144.73,24.38]
[1746407486763,6.1499,144.82,144.74,6.9085]
[1746407487065,6.1499,144.82,144.73,24.38]
[1746407487565,6.9072,144.77,144.73,31.2887]
[1746407487965,6.9072,144.77,144.73,24.38]
[1746407488162,6.9068,144.78,144.74,6.9083]
[1746407488466,6.1499,144.82,144.74,6.9083]
[1746407488660,6.9072,144.77,144.73,31.2888]
[1746407488861,24.38,144.79,144.73,24.38]
[1746407489364,6.9083,144.75,144.73,24.38]
[1746407490364,6.9085,144.74,144.7,24.38]
[1746407491564,24.38,144.79,144.7,24.38]
[1746407493169,6.9088,144.74,144.71,6.9099]
[1746407493471,24.38,144.79,144.7,24.38]
[1746407493767,24.38,144.79,144.67,24.38]
[1746407494068,6.9098,144.72,144.69,6.9108]
[1746407494464,24.38,144.74,144.67,24.38]
[1746407494670,6.9093,144.73,144.69,6.9109]
[1746407496367,6.9086,144.74,144.67,24.38]
[1746407496563,24.38,144.75,144.67,24.38]
[1746407496763,24.38,144.76,144.67,24.38]
[1746407497267,6.9085,144.74,144.71,6.9096]
[1746407498769,6.9082,144.75,144.71,6.9096]
[1746407498962,6.9082,144.75,144.72,6.9095]
[1746407500168,6.9082,144.75,144.71,6.9098]
[1746407500371,6.9087,144.74,144.71,6.9098]
[1746407503973,24.38,144.76,144.7,31.2905]
[1746407504172,2.1213,144.75,144.7,24.38]
[1746407504467,6.9098,144.72,144.7,24.38]
[1746407504674,6.2182,144.75,144.67,24.38]
[1746407505771,6.9108,144.7,144.67,31.2917]
[1746407506269,6.2182,144.75,144.63,4.0657]
[1746407506471,6.2182,144.75,144.56,15.44581153]
[1746407506662,26.70375343,144.74,144.56,15.44581153]
[1746407506863,25.46,144.74,144.56,15.44581153]
[1746407507067,25.46,144.74,144.57,32.3765]
[1746407507475,13.8184,144.73,144.57,25.46]
[1746407508074,6.9153,144.6,144.57,25.46]
[1746407508573,25.46,144.65,144.57,25.46]
[1746407508775,6.9157,144.59,144.57,25.46]
[1746407510774,6.9162,144.58,144.57,25.46]
[1746407510975,25.48,144.61,144.53,25.48]
[1746407511275,4.65487828,144.6,144.5,361.0]
[1746407511476,6.9189,144.53,144.49,32.4001]
[1746407511775,25.48,144.57,144.49,25.48]
[1746407512076,6.9182,144.54,144.49,25.48]
[1746407512577,2.13,144.56,144.49,25.48]
[1746407512776,6.9189,144.53,144.49,25.48]
[1746407513175,6.2536,144.56,144.49,25.48]
[1746407513375,6.919,144.53,144.49,25.48]
[1746407513674,6.2536,144.56,144.49,25.48]
[1746407513977,6.9186,144.53,144.49,25.48]
[1746407514776,6.9186,144.53,144.49,32.4003]
[1746407515579,6.2536,144.56,144.49,25.48]
[1746407515876,25.48,144.57,144.49,25.48]
[1746407516075,25.48,144.57,144.53,6.9182]
[1746407516272,25.48,144.6,144.53,6.9182]
[1746407516479,25.48,144.6,144.49,25.48]
[1746407516673,6.9171,144.57,144.52,6.919]
[1746407516865,25.48,144.6,144.49,25.48]
[1746407517176,6.9163,144.58,144.49,25.48]
[1746407517576,6.9163,144.58,144.53,6.9184]
[1746407518479,6.9168,144.57,144.53,6.9184]
[1746407520376,6.9171,144.57,144.52,6.9189]
[1746407520680,25.48,144.6,144.52,6.9189]
[1746407520974,6.9172,144.56,144.52,6.9189]
[1746407522078,6.9176,144.55,144.52,6.9189]
[1746407522376,25.48,144.6,144.52,6.9189]
[1746407522576,6.9165,144.58,144.49,25.48]
[1746407522780,25.48,144.6,144.5,4.1787]
[1746407523077,6.917,144.57,144.5,4.1787]
[1746407523277,25.48,144.6,144.5,2.1678]
[1746407524183,6.9184,144.54,144.5,9.0877]
[1746407525979,6.9186,144.53,144.49,25.48]
[1746407526482,6.9191,144.52,144.49,25.48]
[1746407526782,25.5,144.56,144.46,25.5]
[1746407527080,6.9204,144.5,144.46,32.4219]
[1746407527381,1.9951,144.55,144.46,25.5]
[1746407528282,6.9198,144.51,144.47,6.9214]
[1746407528486,2.1596,144.54,144.46,25.5]
[1746407528780,4.2182,144.54,144.46,25.5]
[1746407528982,4.2182,144.54,144.47,6.9214]
[1746407529487,6.92,144.51,144.47,6.9214]
[1746407529987,4.2182,144.54,144.46,32.4217]
[1746407530184,6.9203,144.5,144.46,25.5]
[1746407530687,6.9197,144.51,144.46,25.5]
[1746407530883,4.2182,144.54,144.46,25.5]
[1746407531589,6.9198,144.51,144.48,6.9206]
[1746407531778,4.2182,144.54,144.46,25.5]
[1746407532086,6.9208,144.49,144.46,25.5]
[1746407532287,25.5,144.52,144.46,25.5]
[1746407532877,25.5,144.52,144.43,572.88]
[1746407533081,6.9224,144.45,144.43,25.5]
[1746407533280,25.5,144.52,144.43,25.5]
[1746407533684,6.9219,144.46,144.43,32.4231]
[1746407533989,6.9219,144.46,144.43,25.5]
[1746407534687,6.9219,144.46,144.43,32.4231]
[1746407535088,6.9219,144.46,144.4,25.5]
[1746407535290,25.5,144.48,144.4,25.5]
[1746407535588,25.5,144.47,144.4,25.5]
[1746407535789,6.9232,144.44,144.4,25.5]
[1746407535990,25.5,144.47,144.4,25.5]
[1746407536192,25.5,144.47,144.41,6.924]
[1746407537290,25.5,144.47,144.4,32.4247]
[1746407537791,6.9237,144.43,144.4,25.5]
[1746407538291,25.5,144.47,144.4,25.5]
[1746407538491,6.9236,144.43,144.4,25.5]
[1746407539093,6.9239,144.42,144.4,25.5]
[1746407539692,25.5,144.47,144.37,25.26]
[1746407539891,4.1562,144.46,144.37,25.26]
[1746407540085,4.1562,144.46,144.38,6.9254]
[1746407540289,6.924,144.42,144.38,6.9254]
[1746407540586,4.1562,144.46,144.38,6.9254]
[1746407540891,6.9241,144.42,144.38,6.9254]
[1746407542194,6.9241,144.42,144.39,6.9252]
[1746407542992,6.9241,144.42,144.38,6.9256]
[1746407544589,6.9241,144.42,144.39,6.9253]
[1746407544793,6.9241,144.42,144.37,25.26]
[1746407545193,6.9241,144.42,144.38,6.9254]
[1746407546695,4.1562,144.46,144.37,25.26]
[1746407547188,6.9241,144.42,144.39,6.9251]
[1746407547396,6.9241,144.42,144.37,25.26]
[1746407548194,6.9241,144.42,144.38,6.9256]
[1746407548797,4.1562,144.46,144.37,25.26]
[1746407549396,6.9241,144.42,144.38,6.9257]
[1746407551203,6.9241,144.42,144.39,6.9252]
[1746407552900,6.9241,144.42,144.38,6.9256]
[1746407554300,6.9236,144.43,144.39,6.9251]
[1746407554496,547.98,144.53,144.37,25.26]
[1746407554697,34.19746779,144.52,144.38,2.0668]
[1746407554896,4.64226779,144.51,144.38,2.0668]
[1746407555096,6.9218,144.47,144.43,6.9231]
[1746407555299,29.5552,144.52,144.43,32.2031]
[1746407555494,4.64508998,144.51,144.43,32.2031]
[1746407555694,6.9217,144.47,144.43,32.2031]
[1746407557401,6.9217,144.47,144.44,6.9228]
[1746407558991,6.9212,144.48,144.44,6.9228]
[1746407559902,6.9212,144.48,144.45,6.9223]
[1746407560701,29.5552,144.52,144.43,25.28]
[1746407560903,4.63918615,144.51,144.43,25.28]
[1746407561200,6.9204,144.5,144.43,25.28]
[1746407561397,29.5552,144.52,144.44,5.28268194]
[1746407561597,25.28,144.55,144.44,5.28268194]
[1746407561799,4.63991342,144.54,144.44,7.45258194]
[1746407561998,6.9191,144.52,144.44,7.45258194]
[1746407562705,6.9187,144.53,144.44,7.45258194]
[1746407563296,6.9187,144.53,144.5,6.9199]
[1746407563497,32.1981,144.55,144.49,25.28]
[1746407563694,25.28,144.55,144.49,25.28]
[1746407564098,6.9185,144.54,144.49,32.2002]
[1746407564702,6.9185,144.54,144.5,6.9199]
[1746407565200,6.9186,144.53,144.5,6.9199]
[1746407566596,6.9186,144.53,144.49,32.2003]
[1746407567304,6.9186,144.53,144.47,5.28268194]
[1746407567305,25.28,144.55,144.46,25.02]
[1746407567504,4.63896132,144.54,144.46,25.02]
[1746407567698,4.63896132,144.53,144.46,25.02]
[1746407567905,6.9208,144.49,144.46,25.02]
[1746407569805,6.9211,144.48,144.46,25.02]
[1746407571003,6.9206,144.49,144.46,25.02]
[1746407571201,25.28,144.55,144.46,31.9419]
[1746407571402,4.64361827,144.54,144.46,31.9419]
[1746407571601,4.64361827,144.53,144.46,31.9419]
[1746407571805,6.9201,144.5,144.46,31.9419]
[1746407572505,6.9198,144.51,144.46,25.02]
[1746407573204,6.9198,144.51,144.47,6.9212]
[1746407576108,6.9201,144.5,144.47,6.9212]
[1746407577809,6.9197,144.51,144.47,6.9212]
[1746407578408,6.9201,144.5,144.47,6.9212]
[1746407578908,6.9197,144.51,144.47,6.9212]
[1746407582004,6.9197,144.51,144.46,25.02]
[1746407582005,25.28,144.55,144.46,25.02]
[1746407582210,4.63045864,144.54,144.46,30.30268194]
[1746407582407,25.28,144.55,144.46,30.30268194]
[1746407582607,6.9194,144.52,144.48,6.9207]
[1746407583011,6.9194,144.52,144.46,30.30268194]
[1746407583214,6.9185,144.54,144.5,6.9196]
[1746407583510,11.65468194,144.58,144.5,25.02]
[1746407583701,4.62186002,144.57,144.5,25.02]
[1746407583902,6.9183,144.54,144.5,31.9396]
[1746407584810,6.9186,144.53,144.5,31.9396]
[1746407586005,6.9182,144.54,144.51,6.9194]
[1746407586205,6.372,144.58,144.51,6.9194]
[1746407586412,4.63074817,144.57,144.51,6.9194]
[1746407586600,6.9179,144.55,144.51,6.9194]
[1746407586916,6.372,144.58,144.52,6.919]
[1746407587913,6.9175,144.56,144.53,6.9184]
[1746407588112,25.02,144.62,144.5,25.02]
[1746407588315,4.61827195,144.61,144.52,5.28268194]
[1746407588503,6.9159,144.59,144.55,6.9173]
[1746407588702,6.9159,144.59,144.55,31.9373]
[1746407591323,6.9159,144.59,144.56,6.917]
[1746407591520,25.02,144.62,144.55,25.02]
[1746407593225,6.9153,144.6,144.57,6.9164]
[1746407593522,6.9153,144.6,144.55,25.02]
[1746407593823,31.2883,144.65,144.55,30.30268194]
[1746407594122,4.61818491,144.64,144.55,30.30268194]
[1746407594320,6.9146,144.62,144.58,6.9159]
[1746407594625,31.2883,144.65,144.55,30.30268194]
[1746407597324,6.9143,144.62,144.58,6.9159]
[1746407597526,6.9143,144.62,144.59,25.02]
[1746407598524,6.9143,144.62,144.59,31.9357]
[1746407598724,2.1695,144.65,144.59,25.02]
[1746407599831,6.9136,144.64,144.6,6.915]
[1746407600934,6.913,144.65,144.61,6.9145]
[1746407601536,26.943,144.68,144.61,6.9145]
[1746407602333,6.9133,144.64,144.61,6.9145]
[1746407602733,26.943,144.68,144.61,6.9145]
[1746407603033,6.9131,144.65,144.61,6.9145]
[1746407603629,6.9131,144.65,144.62,6.9142]
[1746407604335,6.9125,144.66,144.62,6.9142]
[1746407606936,6.9125,144.66,144.63,24.82]
[1746407609138,6.913,144.65,144.63,24.82]
[1746407609338,7.43368194,144.69,144.6,24.82]
[1746407609634,2.0934,144.67,144.6,24.82]
[1746407609933,2.0934,144.67,144.61,6.9144]
[1746407611039,6.9134,144.64,144.61,6.9144]
[1746407613240,6.9139,144.63,144.6,31.7351]
[1746407613641,2.0934,144.67,144.6,24.82]
[1746407613939,6.9148,144.61,144.6,24.82]
[1746407614134,26.9134,144.67,144.57,24.82]
[1746407614541,6.9142,144.63,144.59,6.9154]
[1746407614745,26.9134,144.67,144.57,24.82]
[1746407615241,26.9134,144.67,144.6,6.9149]
[1746407615440,26.9134,144.67,144.57,24.82]
[1746407615641,6.9146,144.62,144.58,6.9158]
[1746407615842,26.9134,144.67,144.57,24.82]
[1746407616235,6.9149,144.61,144.57,31.7364]
[1746407616436,6.9149,144.61,144.57,24.82]
[1746407616738,6.9144,144.62,144.58,6.9162]
[1746407617246,26.9134,144.67,144.57,24.82]
[1746407617434,6.9156,144.6,144.57,24.82]
[1746407618241,6.9156,144.6,144.57,31.7365]
[1746407618443,6.9148,144.61,144.57,31.7365]
[1746407619246,6.9145,144.62,144.57,24.82]
[1746407620247,6.9145,144.62,144.59,6.9156]
[1746407621545,6.9145,144.62,144.57,24.82]
[1746407621748,6.9149,144.61,144.57,24.82]
[1746407622448,6.9149,144.61,144.58,6.9162]
[1746407622751,6.9149,144.61,144.57,24.82]
[1746407623144,6.9149,144.61,144.58,6.9161]
[1746407626051,6.9145,144.62,144.58,6.9161]
[1746407627150,6.9148,144.61,144.58,6.9161]
[1746407628953,6.9148,144.61,144.57,31.7365]
[1746407629845,6.9148,144.61,144.58,6.9162]
[1746407630053,6.9144,144.62,144.57,24.82]
[1746407630243,26.9134,144.67,144.57,24.82]
[1746407630440,4.61405221,144.66,144.57,24.82]
[1746407630647,4.61405221,144.65,144.58,5.28268194]
[1746407630849,26.9134,144.67,144.58,5.28268194]
[1746407631049,6.9132,144.65,144.58,5.28268194]
[1746407631451,6.9132,144.65,144.61,6.9144]
[1746407631652,6.9132,144.65,144.61,31.6144]
[1746407632247,6.9134,144.64,144.61,31.6144]
[1746407636654,6.913,144.65,144.62,6.9142]
[1746407636855,2.0934,144.67,144.62,6.9142]
[1746407637256,6.9126,144.66,144.62,6.9142]
[1746407637556,2.0934,144.67,144.61,36.89718194]
[1746407637856,6.913,144.65,144.61,29.98268194]
[1746407638657,6.9134,144.64,144.61,31.6146]
[1746407639257,6.9138,144.63,144.61,24.7]
[1746407639460,2.0934,144.67,144.61,24.7]
[1746407639661,4.61538,144.66,144.61,24.7]
[1746407639855,4.61538,144.65,144.61,24.7]
[1746407640053,4.61538,144.64,144.61,24.7]